bitfinex-derivatives/quotes_SOLF0:USTF0_20250301
["timestamp","ask_amount","ask_price","bid_price","bid_amount"]
[1740807154553,390.14539145,145.3,145.29,4.123e-05]
[1740807154853,388.92315381,145.3,145.29,4.123e-05]
[1740807155056,390.14562036,145.3,145.29,4.123e-05]
[1740807155556,321.25964564,145.3,145.29,4.123e-05]
[1740807155855,300.58964564,145.3,145.29,4.123e-05]
[1740807156659,321.25964564,145.3,145.29,4.123e-05]
[1740807156855,300.58964564,145.3,145.29,4.123e-05]
[1740807157156,297.14964564,145.3,145.29,4.123e-05]
[1740807158053,295.92717909,145.3,145.29,4.123e-05]
[1740807158255,300.58938855,145.3,145.29,4.123e-05]
[1740807158555,300.58920248,145.3,145.29,4.123e-05]
[1740807159657,256.49841763,145.3,145.29,4.123e-05]
[1740807161353,253.05841763,145.3,145.29,4.123e-05]
[1740807162258,253.05836122,145.3,145.29,4.123e-05]
[1740807163954,251.83639424,145.3,145.29,4.123e-05]
[1740807164259,253.05773542,145.3,145.29,4.123e-05]
[1740807165153,298.92491553,145.3,145.29,4.123e-05]
[1740807167363,323.03491553,145.3,145.29,4.123e-05]
[1740807167757,298.92441585,145.3,145.29,4.123e-05]
[1740807168056,302.36441585,145.3,145.29,4.123e-05]
[1740807168559,298.92441585,145.3,145.29,4.123e-05]
[1740807168961,297.08066536,145.3,145.29,4.123e-05]
[1740807169357,285.77982386,145.3,145.29,4.123e-05]
[1740807169556,297.08080726,145.3,145.29,4.123e-05]
[1740807171361,372.35659699,145.3,145.29,4.123e-05]
[1740807173054,361.05561359,145.3,145.29,4.123e-05]
[1740807173259,372.35751331,145.3,145.29,4.123e-05]
[1740807174863,371.13561359,145.3,145.29,4.123e-05]
[1740807175961,140.61561359,145.3,145.29,4.123e-05]
[1740807176264,150.69561359,145.3,145.29,4.123e-05]
[1740807177164,147.74641359,145.3,145.29,4.123e-05]
[1740807177464,12.6381,145.3,145.29,4.123e-05]
[1740807187977,2.5581,145.3,145.29,4.123e-05]
[1740807188274,0.04665029,145.32,145.29,4.123e-05]
[1740807188875,5.5073,145.3,145.29,4.123e-05]
[1740807189577,4.8682,145.3,145.29,4.123e-05]
[1740807189875,0.04665029,145.32,145.29,4.123e-05]
[1740807190389,5.5073,145.3,145.29,4.123e-05]
[1740807191978,5.5073,145.3,145.29,3.44004123]
[1740807192178,5.5073,145.3,145.29,4.123e-05]
[1740807196183,5.55355029,145.32,145.29,3.44004123]
[1740807196377,5.55355029,145.32,145.29,4.123e-05]
[1740807196774,5.55355029,145.32,145.29,3.44004123]
[1740807196986,5.55355029,145.32,145.29,4.123e-05]
[1740807197186,5.55355029,145.32,145.29,5.50774123]
[1740807198190,5.55355029,145.32,145.29,4.123e-05]
[1740807199180,0.04665029,145.32,145.29,4.123e-05]
[1740807199389,0.04665029,145.32,145.29,8.94744123]
[1740807200285,5.55335029,145.32,145.29,4.123e-05]
[1740807200691,5.55335029,145.32,145.29,5.50774123]
[1740807200886,5.507,145.31,145.29,4.123e-05]
[1740807202690,5.55335029,145.32,145.29,5.50774123]
[1740807203788,5.55335029,145.32,145.29,8.94774123]
[1740807204087,5.55335029,145.32,145.29,5.50774123]
[1740807204293,5.55335029,145.32,145.29,8.94774123]
[1740807205298,0.04665029,145.32,145.29,4.123e-05]
[1740807205490,5.5071,145.31,145.29,4.123e-05]
[1740807205694,0.04665029,145.32,145.29,4.123e-05]
[1740807205892,5.55355029,145.32,145.29,5.50764123]
[1740807207292,5.55355029,145.32,145.29,4.123e-05]
[1740807208092,0.04665029,145.32,145.29,4.123e-05]
[1740807208295,0.04665029,145.32,145.29,8.94744123]
[1740807208498,0.04665029,145.32,145.29,5.50744123]
[1740807208795,0.04665029,145.32,145.3,5.5073]
[1740807209493,0.04665029,145.32,145.31,5.507]
[1740807209796,45.84582034,145.41,145.29,3.44004123]
[1740807209995,45.84582034,145.41,145.29,188.6468]
[1740807210793,45.84582034,145.41,145.34,0.05033434]
[1740807210999,0.04470834,145.36,145.35,10.08]
[1740807211298,5.5039,145.39,145.35,15.5852]
[1740807211494,45.84582034,145.41,145.35,10.08]
[1740807211695,39.95042034,145.41,145.35,10.08]
[1740807212299,0.04739782,145.39,145.35,10.08]
[1740807213397,5.55159782,145.39,145.35,10.08]
[1740807213697,5.55159782,145.39,145.35,13.52]
[1740807213698,0.04739782,145.39,145.35,13.52]
[1740807214094,0.04739782,145.39,145.35,10.08]
[1740807215206,0.04739782,145.39,145.35,15.5852]
[1740807215405,5.55149782,145.39,145.35,15.5852]
[1740807215902,0.04739782,145.39,145.35,10.08]
[1740807216107,0.04739782,145.39,145.36,5.5049]
[1740807216405,0.04739782,145.39,145.35,10.08]
[1740807217307,0.04739782,145.39,145.36,5.5048]
[1740807219814,0.04739782,145.39,145.37,5.5047]
[1740807222711,0.04739782,145.39,145.35,10.08]
[1740807223012,0.04739782,145.39,145.34,188.69713434]
[1740807223406,5.5053,145.36,145.34,188.69713434]
[1740807223607,5.5053,145.36,145.34,0.05033434]
[1740807224609,0.04739782,145.39,145.34,0.05033434]
[1740807224914,5.5054,145.35,145.34,0.05033434]
[1740807233227,0.04696737,145.36,145.3,5.5073]
[1740807233521,5.5062,145.34,145.3,5.5073]
[1740807234313,3.93046737,145.36,145.3,5.5073]
[1740807234518,5.5062,145.33,145.31,0.04580097]
[1740807235217,5.5059,145.34,145.31,5.55270097]
[1740807236023,5.5062,145.33,145.31,0.04580097]
[1740807236622,3.93046737,145.36,145.31,5.55250097]
[1740807236824,3.93046737,145.36,145.31,0.04580097]
[1740807237226,5.5057,145.35,145.32,5.5066]
[1740807240228,5.5058,145.34,145.31,5.55260097]
[1740807241328,5.5056,145.35,145.32,5.5066]
[1740807241527,5.5056,145.35,145.31,0.04580097]
[1740807242031,5.5056,145.35,145.31,5.55240097]
[1740807242230,5.5056,145.35,145.31,0.04580097]
[1740807242933,5.5056,145.35,145.32,5.5066]
[1740807244037,3.93046737,145.36,145.31,0.04580097]
[1740807244238,5.5059,145.34,145.31,5.55250097]
[1740807244828,5.5059,145.34,145.31,0.04580097]
[1740807245333,5.5059,145.34,145.31,5.55260097]
[1740807245534,5.5059,145.34,145.31,0.04580097]
[1740807245836,5.5059,145.34,145.31,5.55250097]
[1740807246024,5.5056,145.35,145.31,5.55250097]
[1740807246238,3.93046737,145.36,145.31,0.04580097]
[1740807246438,3.93046737,145.36,145.33,5.5062]
[1740807246940,3.93046737,145.36,145.32,5.5064]
[1740807247139,3.93046737,145.36,145.31,0.04580097]
[1740807247341,9.43566737,145.36,145.31,0.04580097]
[1740807247747,7.49386737,145.36,145.31,0.04580097]
[1740807248442,7.49386737,145.36,145.33,5.5062]
[1740807249151,7.49386737,145.36,145.32,5.5064]
[1740807249650,1.98866737,145.36,145.31,0.04580097]
[1740807249846,3.7672,145.35,145.31,0.04580097]
[1740807250245,5.5066,145.32,145.31,0.04580097]
[1740807257154,0.04621157,145.33,145.26,10.06]
[1740807257345,5.5079,145.29,145.26,5.5088]
[1740807258351,5.55781857,145.29,145.26,5.55227495]
[1740807259055,5.5081,145.28,145.26,5.55227495]
[1740807259352,0.04991857,145.29,145.26,0.04347495]
[1740807259752,5.5085,145.27,145.26,0.04347495]
[1740807261355,5.5091,145.26,145.22,73.82547226]
[1740807261956,5.5091,145.26,145.22,5.5104]
[1740807262652,0.04537193,145.25,145.23,0.0459693]
[1740807262856,0.04537193,145.25,145.24,5.5096]
[1740807263150,0.04537193,145.25,145.23,0.0459693]
[1740807264858,0.04537193,145.25,145.23,5.5558693]
[1740807266757,0.04537193,145.25,145.23,0.0459693]
[1740807266955,0.04537193,145.25,145.24,5.5096]
[1740807282074,0.04537193,145.25,145.23,5.5558693]
[1740807282274,0.04537193,145.25,145.23,0.0459693]
[1740807282474,5.5096,145.24,145.23,0.0459693]
[1740807284778,0.04537193,145.25,145.23,0.0459693]
[1740807285878,0.04537193,145.25,145.23,5.5559693]
[1740807290479,5.55477193,145.25,145.23,0.0459693]
[1740807291084,0.04537193,145.25,145.23,5.5559693]
[1740807295485,0.04537193,145.25,145.24,5.5096]
[1740807303091,0.04537193,145.25,145.23,0.0459693]
[1740807303685,5.55477193,145.25,145.23,0.0459693]
[1740807303990,0.04537193,145.25,145.23,0.0459693]
[1740807305292,3.7333,145.34,145.26,5.5088]
[1740807305594,33.72318649,145.32,145.26,5.5088]
[1740807305789,28.21638649,145.32,145.24,10.06]
[1740807306293,28.21638649,145.32,145.24,198.7068]
[1740807306493,0.04422729,145.29,145.27,0.04591782]
[1740807307594,0.04422729,145.29,145.28,5.508]
[1740807309000,28.21638649,145.32,145.31,5.507]
[1740807309187,33.95358649,145.39,145.29,10.06]
[1740807310088,0.0452916,145.35,145.33,0.04927143]
[1740807311402,0.0452916,145.35,145.33,5.55527143]
[1740807311600,0.0452916,145.35,145.33,0.04927143]
[1740807314202,0.0452916,145.35,145.28,188.6468]
[1740807314798,0.0452916,145.35,145.27,220.34]
[1740807315403,0.0452916,145.35,145.3,0.05051855]
[1740807315703,5.5061,145.34,145.3,0.05051855]
[1740807315896,0.0452916,145.35,145.3,0.05051855]
[1740807316198,5.507,145.31,145.3,0.05051855]
[1740807316395,10.04,145.34,145.25,0.60861029]
[1740807316598,5.5091,145.26,145.23,10.04]
[1740807316796,3.8271,145.3,145.23,10.04]
[1740807317101,3.8271,145.3,145.2,230.3]
[1740807317302,5.5096,145.24,145.2,230.3]
[1740807317801,0.04723892,145.26,145.21,0.05237606]
[1740807319507,0.04723892,145.26,145.21,5.56307606]
[1740807323106,0.04723892,145.26,145.21,0.05237606]
[1740807323303,0.04723892,145.26,145.22,5.5103]
[1740807323809,0.04723892,145.26,145.25,5.5092]
[1740807324817,10.06,145.37,145.25,10.06]
[1740807325013,3.7129,145.38,145.25,198.7068]
[1740807325218,5.5048,145.37,145.25,198.7068]
[1740807325425,3.7129,145.38,145.31,5.5066]
[1740807325906,5.5057,145.35,145.29,5.5076]
[1740807326109,5.5057,145.35,145.33,0.04945774]
[1740807326322,0.05278732,145.36,145.33,0.04945774]
[1740807327812,5.5058,145.34,145.33,0.04945774]
[1740807328017,5.5058,145.34,145.29,5.5077]
[1740807329125,0.04743112,145.33,145.3,0.0469499]
[1740807329819,0.04743112,145.33,145.3,5.5542499]
[1740807330123,0.04743112,145.33,145.3,0.0469499]
[1740807330519,0.04743112,145.33,145.32,5.5066]
[1740807332227,0.04743112,145.33,145.31,5.5069]
[1740807333425,0.04743112,145.33,145.3,0.0469499]
[1740807333627,0.04743112,145.33,145.32,5.5066]
[1740807334026,0.04743112,145.33,145.3,0.0469499]
[1740807334224,0.04743112,145.33,145.31,5.5068]
[1740807334621,0.04743112,145.33,145.32,5.5066]
[1740807335026,3.112e-05,145.33,145.32,5.5066]
[1740807336925,3.112e-05,145.33,145.32,8.9466]
[1740807337228,3.112e-05,145.33,145.32,194.1534]
[1740807338932,3.112e-05,145.33,145.32,197.5934]
[1740807341236,3.112e-05,145.33,145.32,194.1534]
[1740807345232,3.112e-05,145.33,145.32,197.5934]
[1740807347133,3.112e-05,145.33,145.32,194.1534]
[1740807347335,3.112e-05,145.33,145.32,5.5066]
[1740807350533,3.112e-05,145.33,145.32,8.9466]
[1740807350733,3.112e-05,145.33,145.32,9.8796]
[1740807354530,3.112e-05,145.33,145.32,6.4396]
[1740807354736,3.112e-05,145.33,145.32,5.5066]
[1740807354931,3.112e-05,145.33,145.32,15.5466]
[1740807362050,3.112e-05,145.33,145.3,0.0469499]
[1740807362248,3.112e-05,145.33,145.3,15.5941499]
[1740807362449,3.112e-05,145.33,145.23,64.43293439]
[1740807362644,1.90023112,145.33,145.23,64.43293439]
[1740807362946,1.9002,145.33,145.23,74.47293439]
[1740807363250,1.9002,145.33,145.22,9.57385818]
[1740807363552,1.9002,145.33,145.22,6.62605818]
[1740807363852,0.04522099,145.29,145.26,0.04954419]
[1740807364051,5.5098,145.24,145.22,6.62605818]
[1740807364750,5.5091,145.26,145.19,5.5114]
[1740807364954,1.8088,145.25,145.19,5.5114]
[1740807365151,0.04373248,145.24,145.21,0.04933065]
[1740807368543,0.04373248,145.24,145.22,5.5104]
[1740807368746,0.04373248,145.24,145.21,0.04933065]
[1740807368946,0.04373248,145.24,145.21,5.55973065]
[1740807369957,0.04373248,145.24,145.22,5.5104]
[1740807370255,0.04373248,145.24,145.21,0.04933065]
[1740807370456,0.04373248,145.24,145.23,5.51]
[1740807372456,0.04373248,145.24,145.22,5.5103]
[1740807372756,0.04373248,145.24,145.21,0.04933065]
[1740807372952,0.04373248,145.24,145.22,5.5103]
[1740807373157,3.248e-05,145.24,145.21,0.04933065]
[1740807373351,3.248e-05,145.24,145.23,10.04]
[1740807373552,3.248e-05,145.24,145.23,15.55]
[1740807374558,3.248e-05,145.24,145.23,207.6368]
[1740807377161,3.248e-05,145.24,145.23,204.1968]
[1740807379059,3.248e-05,145.24,145.23,207.6368]
[1740807379259,3.248e-05,145.24,145.23,214.82304701]
[1740807380359,3.248e-05,145.24,145.23,207.6368]
[1740807380761,3.248e-05,145.24,145.23,208.90147411]
[1740807380957,3.248e-05,145.24,145.23,214.82255239]
[1740807381164,3.248e-05,145.24,145.23,216.08722046]
[1740807383168,3.248e-05,145.24,145.23,214.82255239]
[1740807383368,3.248e-05,145.24,145.23,208.90149144]
[1740807383667,3.248e-05,145.24,145.23,216.08699654]
[1740807383967,3.248e-05,145.24,145.23,236.73699654]
[1740807384370,3.248e-05,145.24,145.23,235.4723051]
[1740807384668,3.248e-05,145.24,145.23,236.73690268]
[1740807386257,3.248e-05,145.24,145.23,229.55139758]
[1740807386467,3.248e-05,145.24,145.23,236.73665541]
[1740807387964,3.7838,145.37,145.23,48.08985541]
[1740807388165,3.7838,145.37,145.35,5.5052]
[1740807388371,3.7838,145.37,145.35,15.5452]
[1740807389169,3.83461284,145.37,145.35,10.09001682]
[1740807392478,1.90421284,145.37,145.35,10.09001682]
[1740807392776,1.90421284,145.37,145.36,5.5051]
[1740807393177,1.90421284,145.37,145.35,10.09001682]
[1740807393579,1.7703,145.36,145.32,10.04]
[1740807393981,1.7703,145.36,145.33,5.5062]
[1740807394781,1.7703,145.36,145.33,5.55574915]
[1740807396579,1.90421284,145.37,145.36,5.5051]
[1740807396772,0.05081284,145.37,145.36,5.5051]
[1740807396973,1.284e-05,145.37,145.36,5.5051]
[1740807410680,1.284e-05,145.37,145.35,5.5054]
[1740807412587,1.284e-05,145.37,145.34,10.02]
[1740807412889,1.284e-05,145.37,145.33,0.04954915]
[1740807413088,1.284e-05,145.37,145.34,10.02]
[1740807416989,1.284e-05,145.37,145.33,0.04954915]
[1740807417190,1.284e-05,145.37,145.34,10.02]
[1740807418887,1.284e-05,145.37,145.34,7.0719]
[1740807419281,1.284e-05,145.37,145.33,0.04954915]
[1740807419887,5.5058,145.34,145.33,0.04954915]
[1740807420088,5.5058,145.34,145.3,230.26]
[1740807420286,1.8038,145.33,145.3,220.24]
[1740807421195,1.85065126,145.33,145.3,220.2893489]
[1740807423392,1.85065126,145.33,145.31,5.5068]
[1740807423798,1.85065126,145.33,145.3,220.2893489]
[1740807423987,1.85065126,145.33,145.31,5.507]
[1740807424389,1.85065126,145.33,145.3,220.2893489]
[1740807425885,3.75505126,145.33,145.3,220.2893489]
[1740807426599,3.75505126,145.33,145.3,225.7965489]
[1740807427398,3.75505126,145.33,145.3,220.2893489]
[1740807427593,1.95125126,145.33,145.3,220.2893489]
[1740807427895,0.04685126,145.33,145.3,220.2893489]
[1740807428500,0.04685126,145.33,145.32,5.5066]
[1740807429596,3.8056,145.39,145.3,220.2893489]
[1740807429791,3.8056,145.39,145.3,220.24]
[1740807430196,3.8056,145.39,145.37,5.5047]
[1740807430797,3.8510004,145.39,145.37,5.54811008]
[1740807432296,3.8510004,145.39,145.38,5.5043]
[1740807432904,0.0454004,145.39,145.38,5.5043]
[1740807433715,1.8073,145.44,145.4,5.5034]
[1740807433901,1.8073,145.44,145.35,10.02]
[1740807435104,0.04630993,145.41,145.38,0.05136718]
[1740807436409,0.04630993,145.41,145.4,5.5036]
[1740807436609,1.9507,145.48,145.4,10.02]
[1740807437107,1.9507,145.48,145.44,5.5019]
[1740807437807,0.04699154,145.47,145.45,0.04728428]
[1740807440204,0.04699154,145.47,145.45,10.06728428]
[1740807441006,0.04699154,145.47,145.46,5.5013]
[1740807441309,1.8458,145.53,145.45,10.06728428]
[1740807441711,1.8458,145.53,145.49,5.5]
[1740807442010,1.9354,145.55,145.5,10.02]
[1740807442213,1.9354,145.55,145.5,15.5194]
[1740807442415,0.04876142,145.54,145.51,0.04644811]
[1740807446312,5.54706142,145.54,145.51,0.04644811]
[1740807446510,1.9084,145.53,145.51,0.04644811]
[1740807448408,0.04876142,145.54,145.51,0.04644811]
[1740807450219,0.04876142,145.54,145.45,10.02]
[1740807450715,10.02,145.56,145.45,10.02]
[1740807451104,5.4996,145.51,145.49,0.04857853]
[1740807453106,0.05081011,145.52,145.5,5.4997]
[1740807453505,0.05081011,145.52,145.49,0.04857853]
[1740807454218,0.05081011,145.52,145.51,5.4994]
[1740807457015,1.9084,145.57,145.54,5.4982]
[1740807457409,1.9084,145.57,145.5,10.02]
[1740807457615,1.9084,145.57,145.53,5.4985]
[1740807458215,0.0516899,145.56,145.54,5.54352176]
[1740807459215,0.0516899,145.56,145.54,0.04522176]
[1740807459919,0.0516899,145.56,145.55,5.4979]
[1740807461027,3.7722,145.67,145.6,5.4957]
[1740807461221,3.7722,145.67,145.55,10.02]
[1740807461822,5.4941,145.66,145.58,5.4966]
[1740807462026,0.05121186,145.62,145.6,0.04435566]
[1740807463319,0.05121186,145.62,145.55,10.02]
[1740807463725,5.4959,145.61,145.55,10.02]
[1740807464130,7.402,145.61,145.55,10.02]
[1740807464520,1.9061,145.61,145.57,0.04606165]
[1740807465027,1.9061,145.61,145.52,17.3553]
[1740807465232,5.497,145.58,145.52,11.8563]
[1740807465432,1.9061,145.61,145.52,11.8563]
[1740807465729,5.4976,145.56,145.52,10.02]
[1740807465920,1.9061,145.61,145.5,219.94]
[1740807466429,5.498,145.55,145.54,0.04697861]
[1740807466628,10.02,145.56,145.45,5.5015]
[1740807466931,1.8591,145.54,145.45,15.5215]
[1740807467430,5.4991,145.52,145.45,15.5215]
[1740807467624,1.8591,145.54,145.45,15.5215]
[1740807467824,0.04611832,145.5,145.47,0.05021028]
[1740807468322,5.54601832,145.5,145.47,0.05021028]
[1740807468529,0.04611832,145.5,145.47,0.05021028]
[1740807469528,0.04611832,145.5,145.41,1.9554]
[1740807469829,5.5013,145.46,145.41,1.9554]
[1740807470831,0.04819951,145.45,145.42,0.05122562]
[1740807472034,0.04819951,145.45,145.42,5.55392562]
[1740807472430,0.04819951,145.45,145.42,0.05122562]
[1740807473132,0.04819951,145.45,145.43,5.5021]
[1740807473533,0.04819951,145.45,145.42,0.05122562]
[1740807473734,0.04819951,145.45,145.44,5.502]
[1740807474639,0.04819951,145.45,145.43,5.5023]
[1740807475237,0.04819951,145.45,145.42,5.55392562]
[1740807475425,0.04819951,145.45,145.42,0.05122562]
[1740807476538,5.54989951,145.45,145.42,0.05122562]
[1740807478033,0.04819951,145.45,145.42,0.05122562]
[1740807480243,5.5024,145.43,145.42,0.05122562]
[1740807480438,3.8616,145.44,145.37,1.9413]
[1740807481430,0.04659816,145.42,145.37,1.9413]
[1740807481635,0.04659816,145.42,145.39,0.0486216]
[1740807481837,0.04659816,145.42,145.39,5.5525216]
[1740807488345,0.04659816,145.42,145.41,5.5032]
[1740807489945,0.04659816,145.42,145.39,0.0486216]
[1740807489946,0.04659816,145.42,145.4,5.5034]
[1740807490142,0.04659816,145.42,145.39,0.0486216]
[1740807490950,0.04659816,145.42,145.41,5.5032]
[1740807495347,0.04659816,145.42,145.4,5.5034]
[1740807497051,0.04659816,145.42,145.39,0.0486216]
[1740807497251,0.04659816,145.42,145.39,5.5525216]
[1740807498250,0.04659816,145.42,145.39,0.0486216]
[1740807498456,5.54959816,145.42,145.39,0.0486216]
[1740807498951,0.04659816,145.42,145.39,0.0486216]
[1740807501454,5.5036,145.4,145.39,0.0486216]
[1740807501752,0.04659816,145.42,145.32,10.02]
[1740807501959,5.5043,145.39,145.35,5.5054]
[1740807502870,0.04620724,145.38,145.36,0.04361325]
[1740807504662,0.04620724,145.38,145.37,5.5047]
[1740807508656,0.04620724,145.38,145.36,5.54851325]
[1740807511564,0.04620724,145.38,145.37,5.5047]
[1740807513264,1.8176,145.43,145.4,5.5035]
[1740807514265,1.8176,145.43,145.34,1.9286]
[1740807514469,1.86948765,145.43,145.39,5.5038]
[1740807514661,0.04996054,145.42,145.39,5.5038]
[1740807516064,0.04996054,145.42,145.37,0.04358805]
[1740807517169,5.55276054,145.42,145.37,0.04358805]
[1740807517368,0.04996054,145.42,145.37,0.04358805]
[1740807517565,0.04996054,145.42,145.37,5.54808805]
[1740807518458,5.5033,145.41,145.37,5.54808805]
[1740807519570,5.5033,145.41,145.38,5.5043]
[1740807519770,5.55286054,145.42,145.38,5.5043]
[1740807519958,0.04996054,145.42,145.39,5.5039]
[1740807520158,0.04996054,145.42,145.37,0.04358805]
[1740807520361,0.04996054,145.42,145.37,10.06358805]
[1740807520566,0.04996054,145.42,145.41,5.5032]
[1740807525173,1.9111,145.48,145.43,5.5021]
[1740807525374,1.9111,145.48,145.37,10.02]
[1740807526475,0.05138053,145.44,145.42,5.5026]
[1740807533166,5.5011,145.47,145.42,5.5026]
[1740807534274,0.04724734,145.46,145.42,5.5026]
[1740807534478,0.04724734,145.46,145.41,5.5031]
[1740807534675,5.5019,145.45,145.43,0.05120781]
[1740807534974,0.04724734,145.46,145.43,0.05120781]
[1740807535175,0.04724734,145.46,145.39,5.5038]
[1740807535678,0.04724734,145.46,145.38,5.5042]
[1740807535877,10.02,145.45,145.35,222.0568]
[1740807536080,10.02,145.45,145.36,5.5049]
[1740807536378,0.043583,145.41,145.39,0.04415728]
[1740807536876,5.5036,145.4,145.39,0.04415728]
[1740807537678,5.5042,145.39,145.34,5.5056]
[1740807537875,5.5042,145.39,145.3,41.71453463]
[1740807538076,1.8212,145.4,145.31,10.02]
[1740807538379,1.8212,145.4,145.36,5.5048]
[1740807538678,1.8212,145.4,145.31,11.9761]
[1740807538973,0.0453402,145.39,145.37,0.05142485]
[1740807539175,0.0453402,145.39,145.31,11.9761]
[1740807539375,0.0453402,145.39,145.38,5.5043]
[1740807541377,1.8212,145.46,145.37,10.07199742]
[1740807541677,1.8212,145.46,145.37,10.02]
[1740807542781,0.0495383,145.43,145.4,0.04333997]
[1740807543877,5.503,145.42,145.4,0.04333997]
[1740807544980,0.0495383,145.43,145.4,0.04333997]
[1740807545181,5.5032,145.41,145.4,0.04333997]
[1740807547576,10.0695383,145.43,145.4,0.04333997]
[1740807548377,5.503,145.42,145.4,0.04333997]
[1740807549185,5.5032,145.41,145.4,0.04333997]
[1740807550482,5.5048,145.37,145.32,5.5063]
[1740807551578,0.05195712,145.36,145.33,0.04599879]
[1740807552984,5.55705712,145.36,145.33,0.04599879]
[1740807553180,0.05195712,145.36,145.33,0.04599879]
[1740807555087,0.05195712,145.36,145.33,5.55199879]
[1740807555476,0.05195712,145.36,145.33,0.04599879]
[1740807556486,0.05195712,145.36,145.34,5.5058]
[1740807557082,0.05195712,145.36,145.33,5.55209879]
[1740807557584,0.05195712,145.36,145.33,0.04599879]
[1740807557788,5.55705712,145.36,145.33,0.04599879]
[1740807559286,5.5057,145.35,145.33,0.04599879]
[1740807559486,0.05195712,145.36,145.33,0.04599879]
[1740807559790,5.5058,145.34,145.33,0.04599879]
[1740807559983,1.8197,145.35,145.25,1.7829]
[1740807561092,0.05061125,145.31,145.29,0.05130719]
[1740807562390,0.05061125,145.31,145.29,5.55880719]
[1740807563391,0.05061125,145.31,145.29,0.05130719]
[1740807563986,0.05061125,145.31,145.29,5.55900719]
[1740807565095,0.05061125,145.31,145.3,5.5073]
[1740807565593,1.8197,145.35,145.29,0.05130719]
[1740807565792,1.8048,145.37,145.29,0.05130719]
[1740807566291,7.3096,145.37,145.29,0.05130719]
[1740807566688,1.8048,145.37,145.29,0.05130719]
[1740807566891,0.04438216,145.34,145.33,5.5062]
[1740807568698,0.04438216,145.34,145.32,5.55626094]
[1740807570390,0.04438216,145.34,145.33,5.5062]
[1740807578208,0.04438216,145.34,145.32,0.04986094]
[1740807582214,5.55058216,145.34,145.32,0.04986094]
[1740807583517,5.5062,145.33,145.32,0.04986094]
[1740807585517,5.55038216,145.34,145.32,0.04986094]
[1740807585718,0.04438216,145.34,145.32,5.55646094]
[1740807586717,0.04438216,145.34,145.33,5.5062]
[1740807589418,0.04438216,145.34,145.32,5.55626094]
[1740807590217,0.04438216,145.34,145.32,0.04986094]
[1740807590419,0.04438216,145.34,145.33,5.5062]
[1740807592421,0.04438216,145.34,145.32,5.55616094]
[1740807596821,0.04438216,145.34,145.32,0.04986094]
[1740807597129,5.5062,145.33,145.32,0.04986094]
[1740807597326,0.04438216,145.34,145.26,54.38898307]
[1740807597521,5.5074,145.3,145.27,5.5083]
[1740807598526,5.55593809,145.3,145.27,5.55906641]
[1740807599423,0.04853809,145.3,145.27,0.05076641]
[1740807599633,0.04853809,145.3,145.28,5.5081]
[1740807600627,0.04853809,145.3,145.27,5.55916641]
[1740807602431,5.55593809,145.3,145.27,5.55916641]
[1740807603029,0.04853809,145.3,145.27,5.55916641]
[1740807603334,0.04853809,145.3,145.28,5.508]
[1740807603829,0.04853809,145.3,145.29,5.5077]
[1740807604128,1.8059,145.38,145.27,0.05076641]
[1740807604333,5.5053,145.36,145.32,5.5064]
[1740807604835,5.5055,145.35,145.32,5.5064]
[1740807605227,0.04713343,145.35,145.33,5.5061]
[1740807605629,0.04713343,145.35,145.32,0.05184434]
[1740807606329,5.55263343,145.35,145.32,0.05184434]
[1740807607031,5.5059,145.34,145.32,0.05184434]
[1740807608028,5.5062,145.33,145.32,0.05184434]
[1740807608434,0.04713343,145.35,145.32,0.05184434]
[1740807609538,5.5062,145.33,145.32,0.05184434]
[1740807610041,5.5071,145.31,145.28,5.5078]
[1740807611340,5.55402496,145.31,145.28,5.55828239]
[1740807612236,0.04692496,145.31,145.28,0.05048239]
[1740807612949,5.5086,145.27,145.23,5.5099]
[1740807613134,1.9526,145.3,145.22,0.58898093]
[1740807613744,5.5082,145.28,145.24,5.5093]
[1740807614142,0.04644593,145.27,145.24,5.5093]
[1740807614644,0.04644593,145.27,145.25,5.5092]
[1740807617948,0.04644593,145.27,145.26,5.5089]
[1740807620954,7.3702,145.33,145.28,5.5078]
[1740807621453,5.5066,145.32,145.28,5.5078]
[1740807622353,0.05021588,145.31,145.29,0.04690695]
[1740807622855,0.05021588,145.31,145.29,5.55460695]
[1740807623755,0.05021588,145.31,145.29,0.04690695]
[1740807623956,0.05021588,145.31,145.3,5.5073]
[1740807631362,0.05021588,145.31,145.29,0.04690695]
[1740807631567,5.5082,145.28,145.23,220.3]
[1740807632062,5.5085,145.27,145.24,5.5095]
[1740807632663,5.55225567,145.27,145.24,5.5095]
[1740807632867,0.04375567,145.27,145.23,220.3]
[1740807633059,5.5091,145.26,145.22,5.5103]
[1740807633855,5.5094,145.25,145.22,5.5103]